fUSD/lending_fUSD_20240803
["ID","MTS","AMOUNT","RATE_DAILY","PERIOD"]
[333970645,1722653434788,-786.63,0.00016438,2]
[333970646,1722653434797,-500.0,0.00016438,2]
[333970647,1722653434806,-500.0,0.00016438,2]
[333970648,1722653434815,-500.0,0.00016438,2]
[333970649,1722653434825,-788.91,0.00016438,2]
[333970650,1722653434834,-500.0,0.00016438,2]
[333970651,1722653434843,-500.0,0.00016438,2]
[333970652,1722653434852,-500.0,0.00016438,2]
[333970653,1722653434862,-638.24,0.00016438,2]
[333970654,1722653434871,-500.0,0.00016438,2]
[333970655,1722653434880,-511.63,0.00016438,2]
[333970656,1722653434889,-956.08,0.00016438,2]
[333970657,1722653434899,-500.0,0.00016438,2]
[333970658,1722653434908,-500.0,0.00016438,2]
[333970659,1722653434917,-500.0,0.00016438,2]
[333970660,1722653434927,-500.0,0.00016438,2]
[333970661,1722653434936,-802.21,0.00016438,2]
[333970662,1722653434945,-1064.27,0.00016438,2]
[333970663,1722653434954,-500.0,0.00016438,2]
[333970664,1722653434963,-500.0,0.00016438,2]
[333970665,1722653434972,-500.0,0.00016438,2]
[333970666,1722653434981,-500.0,0.00016438,2]
[333970667,1722653434990,-500.0,0.00016438,2]
[333970668,1722653434999,-731.71,0.00016438,2]
[333970669,1722653435008,-802.25,0.00016438,2]
[333970670,1722653435017,-500.0,0.00016438,2]
[333970671,1722653435027,-500.0,0.00016438,2]
[333970672,1722653435036,-1208.04,0.00016438,2]
[333970673,1722653435045,-500.0,0.00016438,2]
[333970674,1722653435054,-500.0,0.00016438,2]
[333970675,1722653435063,-500.0,0.00016438,2]
[333970676,1722653435073,-500.0,0.00016438,2]
[333970677,1722653435082,-817.27,0.00016438,2]
[333970678,1722653435091,-1224.39,0.00016438,2]
[333970679,1722653435099,-500.0,0.00016438,2]
[333970680,1722653435109,-500.0,0.00016438,2]
[333970681,1722653435118,-500.0,0.00016438,2]
[333970682,1722653435127,-500.0,0.00016438,2]
[333970683,1722653435136,-500.0,0.00016438,2]
[333970684,1722653435145,-958.96,0.00016438,2]
[333970685,1722653435154,-791.62,0.00016438,2]
[333970686,1722653435163,-500.0,0.00016438,2]
[333970687,1722653435172,-500.0,0.00016438,2]
[333970688,1722653435182,-500.0,0.00016438,2]
[333970689,1722653435191,-500.0,0.00016438,2]
[333970690,1722653435200,-500.0,0.00016438,2]
[333970691,1722653435209,-907.58,0.00016438,2]
[333970692,1722653435219,-1072.12,0.00016438,2]
[333970693,1722653435228,-500.0,0.00016438,2]
[333970694,1722653435237,-500.0,0.00016438,2]
[333970695,1722653435246,-875.17,0.00016438,2]
[333970696,1722653435255,-595.89,0.00016438,2]
[333970697,1722653435265,-500.0,0.00016438,2]
[333970698,1722653435274,-500.0,0.00016438,2]
[333970699,1722653435283,-500.0,0.00016438,2]
[333970700,1722653435292,-713.84,0.00016438,2]
[333970701,1722653435301,-500.0,0.00016438,2]
[333970702,1722653435311,-812.41,0.00016438,2]
[333970703,1722653435319,-500.0,0.00016438,2]
[333970704,1722653435328,-982.99,0.00016438,2]
[333970705,1722653435337,-969.56,0.00016438,2]
[333970706,1722653435347,-604.27,0.00016438,2]
[333970707,1722653435356,-500.0,0.00016438,2]
[333970708,1722653435365,-500.0,0.00016438,2]
[333970709,1722653435374,-500.0,0.00016438,2]
[333970710,1722653435383,-500.0,0.00016438,2]
[333970711,1722653435393,-500.0,0.00016438,2]
[333970712,1722653435402,-500.0,0.00016438,2]
[333970713,1722653435410,-500.0,0.00016438,2]
[333970714,1722653435420,-1005.48,0.00016438,2]
[333970715,1722653435429,-500.0,0.00016438,2]
[333970716,1722653435438,-500.0,0.00016438,2]
[333970717,1722653435447,-610.27854512,0.00016438,2]
[333970718,1722653435456,-559.8,0.00016438,2]
[333970719,1722653435465,-500.0,0.00016438,2]
[333970720,1722653435474,-500.0,0.00016438,2]
[333970721,1722653435483,-500.0,0.00016438,2]
[333970722,1722653435493,-500.0,0.00016438,2]
[333970723,1722653435506,-500.0,0.00016438,2]
[333970724,1722653435515,-500.0,0.00016438,2]
[333970725,1722653435524,-500.0,0.00016438,2]
[333970726,1722653435533,-823.07,0.00016438,2]
[333970727,1722653435543,-875.67,0.00016438,2]
[333970728,1722653435552,-811.4,0.00016438,2]
[333970729,1722653435561,-500.0,0.00016438,2]
[333970730,1722653435570,-500.0,0.00016438,2]
[333970731,1722653435582,-500.0,0.00016438,2]
[333970732,1722653435592,-500.0,0.00016438,2]
[333970733,1722653435601,-500.0,0.00016438,2]
[333970734,1722653435610,-500.0,0.00016438,2]
[333970735,1722653435619,-500.0,0.00016438,2]
[333970736,1722653435629,-500.0,0.00016438,2]
[333970737,1722653435638,-500.0,0.00016438,2]
[333970738,1722653435648,-500.0,0.00016438,2]
[333970739,1722653435657,-805.74,0.00016438,2]
[333970740,1722653435666,-500.0,0.00016438,2]
[333970741,1722653435675,-919.13,0.00016438,2]
[333970742,1722653435685,-770.31,0.00016438,2]
[333970743,1722653435695,-500.0,0.00016438,2]
[333970744,1722653435706,-729.49,0.00016438,2]
[333970745,1722653435716,-500.0,0.00016438,2]
[333970746,1722653435725,-500.0,0.00016438,2]
[333970747,1722653435734,-667.5,0.00016438,2]
[333970748,1722653435743,-500.0,0.00016438,2]
[333970749,1722653435752,-762.97,0.00016438,2]
[333970750,1722653435764,-500.0,0.00016438,2]
[333970751,1722653435774,-500.0,0.00016438,2]
[333970752,1722653435784,-500.0,0.00016438,2]
[333970753,1722653435794,-500.0,0.00016438,2]
[333970754,1722653435805,-835.59,0.00016438,2]
[333970755,1722653435815,-614.53,0.00016438,2]
[333970756,1722653435826,-500.0,0.00016438,2]
[333970757,1722653435836,-500.0,0.00016438,2]
[333970758,1722653435847,-500.0,0.00016438,2]
[333970759,1722653435859,-582.51,0.00016438,2]
[333970760,1722653435868,-500.0,0.00016438,2]
[333970761,1722653435877,-664.59,0.00016438,2]
[333970762,1722653435886,-818.95,0.00016438,2]
[333970763,1722653435895,-500.0,0.00016438,2]
[333970764,1722653435904,-500.0,0.00016438,2]
[333970765,1722653435914,-500.0,0.00016438,2]
[333970766,1722653435924,-784.96,0.00016438,2]
[333970767,1722653435934,-500.0,0.00016438,2]
[333970768,1722653435944,-500.0,0.00016438,2]
[333970769,1722653435955,-783.46,0.00016438,2]
[333970770,1722653435965,-777.27,0.00016438,2]
[333970771,1722653435975,-500.0,0.00016438,2]
[333970772,1722653435983,-500.0,0.00016438,2]
[333970773,1722653435993,-500.0,0.00016438,2]
[333970774,1722653436003,-500.0,0.00016438,2]
[333970775,1722653436012,-500.0,0.00016438,2]
[333970776,1722653436021,-500.0,0.00016438,2]
[333970777,1722653436031,-1016.66,0.00016438,2]
[333970778,1722653436040,-500.0,0.00016438,2]
[333970779,1722653436051,-500.0,0.00016438,2]
[333970780,1722653436062,-776.95,0.00016438,2]
[333970781,1722653436071,-500.0,0.00016438,2]
[333970782,1722653436081,-542.52,0.00016438,2]
[333970783,1722653436091,-1181.78,0.00016438,2]
[333970784,1722653436102,-749.09,0.00016438,2]
[333970785,1722653436111,-840.44,0.00016438,2]
[333970786,1722653436121,-650.31,0.00016438,2]
[333970787,1722653436131,-835.81,0.00016438,2]
[333970788,1722653436142,-500.0,0.00016438,2]
[333970789,1722653436153,-500.0,0.00016438,2]
[333970790,1722653436162,-511.99,0.00016438,2]
[333970791,1722653436172,-765.56,0.00016438,2]
[333970792,1722653436180,-500.0,0.00016438,2]
[333970793,1722653436190,-500.0,0.00016438,2]
[333970794,1722653436199,-275.7782013,0.00016438,2]
[333970795,1722653436208,-500.0,0.00016438,2]
[333970796,1722653436218,-586.69,0.00016438,2]
[333970797,1722653436227,-500.0,0.00016438,2]
[333970798,1722653436237,-1332.92,0.00016438,2]
[333970799,1722653436246,-1147.17,0.00016438,2]
[333970800,1722653436256,-500.0,0.00016438,2]
[333970801,1722653436265,-536.81,0.00016438,2]
[333970802,1722653436275,-500.0,0.00016438,2]
[333970803,1722653436285,-718.87,0.00016438,2]
[333970804,1722653436294,-1129.91,0.00016438,2]
[333970805,1722653436303,-985.05,0.00016438,2]
[333970806,1722653436313,-500.0,0.00016438,2]
[333970807,1722653436322,-500.0,0.00016438,2]
[333970808,1722653436331,-500.0,0.00016438,2]
[333970809,1722653436340,-500.0,0.00016438,2]
[333970810,1722653436349,-500.0,0.00016438,2]
[333970811,1722653436362,-309.55246798,0.00016438,2]
[333970812,1722653436372,-500.0,0.00016438,2]
[333970813,1722653436381,-857.85,0.00016438,2]
[333970814,1722653436390,-791.17,0.00016438,2]
[333970815,1722653436400,-500.0,0.00016438,2]
[333970816,1722653436409,-533.36,0.00016438,2]
[333970817,1722653436418,-784.28,0.00016438,2]
[333970818,1722653436614,-522.56,0.00016438,2]
[333970819,1722653436624,-983.64,0.00016438,2]
[333970820,1722653436635,-857.36,0.00016438,2]
[333970821,1722653436644,-500.0,0.00016438,2]
[333970822,1722653436653,-500.0,0.00016438,2]
[333970823,1722653436663,-812.49,0.00016438,2]
[333970824,1722653436673,-500.0,0.00016438,2]
[333970825,1722653436682,-749.52,0.00016438,2]
[333970826,1722653436692,-616.43,0.00016438,2]
[333970827,1722653436701,-513.31039343,0.00016438,2]
[333970828,1722653436710,-500.0,0.00016438,2]
[333970829,1722653436719,-615.85,0.00016438,2]
[333970830,1722653436729,-500.0,0.00016438,2]
[333970831,1722653436738,-500.0,0.00016438,2]
[333970832,1722653436748,-653.63,0.00016438,2]
[333970833,1722653436757,-1086.03,0.00016438,2]
[333970834,1722653436767,-500.0,0.00016438,2]
[333970835,1722653436776,-500.0,0.00016438,2]
[333970836,1722653436785,-500.0,0.00016438,2]
[333970837,1722653436795,-1144.78,0.00016438,2]
[333970838,1722653436804,-500.0,0.00016438,2]
[333970839,1722653436813,-923.38,0.00016438,2]
[333970840,1722653436823,-500.0,0.00016438,2]
[333970841,1722653436832,-500.0,0.00016438,2]
[333970842,1722653436841,-500.0,0.00016438,2]
[333970843,1722653436850,-500.0,0.00016438,2]
[333970844,1722653436860,-500.0,0.00016438,2]
[333970845,1722653436869,-500.0,0.00016438,2]
[333970846,1722653436878,-891.82,0.00016438,2]
[333970847,1722653436888,-1302.91,0.00016438,2]
[333970848,1722653436897,-500.0,0.00016438,2]
[333970849,1722653436907,-500.0,0.00016438,2]
[333970850,1722653436916,-500.0,0.00016438,2]
[333970851,1722653436926,-500.0,0.00016438,2]
[333970852,1722653436935,-500.0,0.00016438,2]
[333970853,1722653436944,-527.24,0.00016438,2]
[333970854,1722653436953,-500.0,0.00016438,2]
[333970855,1722653436963,-500.0,0.00016438,2]
[333970856,1722653436972,-500.0,0.00016438,2]
[333970857,1722653436981,-1233.43,0.00016438,2]
[333970858,1722653436990,-621.19,0.00016438,2]
[333970859,1722653437000,-500.0,0.00016438,2]
[333970860,1722653437009,-500.0,0.00016438,2]
[333970861,1722653437018,-500.0,0.00016438,2]
[333970862,1722653437027,-582.02,0.00016438,2]
[333970863,1722653437036,-1441.99,0.00016438,2]
[333970864,1722653437046,-546.3,0.00016438,2]
[333970865,1722653437055,-500.0,0.00016438,2]
[333970866,1722653437065,-500.0,0.00016438,2]
[333970867,1722653437074,-500.0,0.00016438,2]
[333970868,1722653437084,-500.0,0.00016438,2]
[333970869,1722653437093,-656.26,0.00016438,2]
[333970870,1722653437103,-1060.92,0.00016438,2]
[333970871,1722653437112,-500.0,0.00016438,2]
[333970872,1722653437122,-1067.77,0.00016438,2]
[333970873,1722653437131,-500.0,0.00016438,2]
[333970874,1722653437141,-500.0,0.00016438,2]
[333970875,1722653437151,-535.47,0.00016438,2]
[333970876,1722653437160,-832.87,0.00016438,2]
[333970877,1722653437169,-500.0,0.00016438,2]
[333970878,1722653437179,-1063.1,0.00016438,2]
[333970879,1722653437189,-500.0,0.00016438,2]
[333970880,1722653437199,-500.0,0.00016438,2]
[333970881,1722653437208,-500.0,0.00016438,2]
[333970882,1722653437218,-500.0,0.00016438,2]
[333970883,1722653437227,-2772.08831,0.00016438,2]
[333970884,1722653437237,-500.0,0.00016438,2]
[333970885,1722653437246,-196.52864636,0.00016438,2]
[333970886,1722653437256,-682.88,0.00016438,2]
[333970887,1722653437265,-1384.22,0.00016438,2]
[333970888,1722653437275,-329.34100466,0.00016438,2]
[333970889,1722653437285,-504.96,0.00016438,2]
[333970890,1722653437294,-500.0,0.00016438,2]
[333970891,1722653437303,-1241.89,0.00016438,2]
[333970892,1722653437313,-500.0,0.00016438,2]
[333970893,1722653437322,-500.0,0.00016438,2]
[333970894,1722653437333,-500.0,0.00016438,2]
[333970895,1722653437343,-500.0,0.00016438,2]
[333970896,1722653437353,-599.09,0.00016438,2]
[333970897,1722653437363,-500.0,0.00016438,2]
[333970898,1722653437373,-500.0,0.00016438,2]
[333970899,1722653437384,-500.0,0.00016438,2]
[333970900,1722653437393,-500.0,0.00016438,2]
[333970901,1722653437403,-500.0,0.00016438,2]
[333970902,1722653437412,-754.34,0.00016438,2]
[333970903,1722653437422,-500.0,0.00016438,2]
[333970904,1722653437431,-500.0,0.00016438,2]
[333970905,1722653437442,-774.19,0.00016438,2]
[333970906,1722653437451,-500.0,0.00016438,2]
[333970907,1722653437462,-500.0,0.00016438,2]
[333970908,1722653437472,-665.96,0.00016438,2]
[333970909,1722653437482,-500.0,0.00016438,2]
[333970910,1722653437492,-500.0,0.00016438,2]
[333970911,1722653437504,-536.45,0.00016438,2]
[333970912,1722653437515,-500.0,0.00016438,2]
[333970913,1722653437524,-500.0,0.00016438,2]
[333970914,1722653437534,-1467.02,0.00016438,2]
[333970915,1722653437545,-500.0,0.00016438,2]
[333970916,1722653437555,-500.0,0.00016438,2]
[333970917,1722653437565,-500.0,0.00016438,2]
[333970918,1722653437576,-785.37,0.00016438,2]
[333970919,1722653437586,-727.89,0.00016438,2]
[333970920,1722653437595,-500.0,0.00016438,2]
[333970921,1722653437605,-884.23,0.00016438,2]
[333970922,1722653437615,-500.0,0.00016438,2]
[333970923,1722653437624,-2941.28,0.00016438,2]
[333970924,1722653437633,-614.63,0.00016438,2]
[333970925,1722653437643,-500.0,0.00016438,2]
[333970926,1722653437653,-500.0,0.00016438,2]
[333970927,1722653437663,-500.0,0.00016438,2]
[333970928,1722653437672,-546.3,0.00016438,2]
[333970929,1722653437682,-500.0,0.00016438,2]
[333970930,1722653437691,-500.0,0.00016438,2]
[333970931,1722653437700,-500.0,0.00016438,2]
[333970932,1722653437710,-500.0,0.00016438,2]
[333970933,1722653437719,-4548.82,0.00016438,2]
[333970934,1722653437729,-282.22818242,0.00016438,2]
[333970935,1722653437738,-547.78,0.00016438,2]
[333970936,1722653437747,-2358.55,0.00016438,2]
[333970937,1722653437758,-500.0,0.00016438,2]
[333970938,1722653437768,-500.0,0.00016438,2]
[333970939,1722653437778,-1759.8,0.00016438,2]
[333970940,1722653437787,-500.0,0.00016438,2]
[333970941,1722653437797,-764.84,0.00016438,2]
[333970942,1722653437806,-601.24,0.00016438,2]
[333970943,1722653437816,-500.0,0.00016438,2]
[333970944,1722653437827,-500.0,0.00016438,2]
[333970945,1722653437838,-1986.94,0.00016438,2]
[333970946,1722653437850,-500.0,0.00016438,2]
[333970947,1722653437860,-194.92655914,0.00016438,2]
[333970948,1722653437870,-12459.64,0.00016438,2]
[333970949,1722653437879,-3380.41,0.00016438,2]
[333970950,1722653437890,-500.0,0.00016438,2]
[333970951,1722653437901,-698.84,0.00016438,2]
[333970952,1722653437910,-500.0,0.00016438,2]
[333970953,1722653437920,-500.0,0.00016438,2]
[333970954,1722653437930,-500.0,0.00016438,2]
[333970955,1722653437940,-500.0,0.00016438,2]
[333970956,1722653437950,-1028.74,0.00016438,2]
[333970957,1722653437960,-795.19,0.00016438,2]
[333970958,1722653437971,-1955.95,0.00016438,2]
[333970959,1722653437981,-500.0,0.00016438,2]
[333970960,1722653437990,-1371.3,0.00016438,2]
[333970961,1722653437999,-500.0,0.00016438,2]
[333970962,1722653438009,-188.37900664,0.00016438,2]
[333970963,1722653438018,-514.5,0.00016438,2]
[333970964,1722653438028,-500.0,0.00016438,2]
[333970965,1722653438037,-958.41,0.00016438,2]
[333970966,1722653438047,-594.5,0.00016438,2]
[333970967,1722653438056,-594.88,0.00016438,2]
[333970968,1722653438065,-3358.45,0.00016438,2]
[333970969,1722653438074,-2195.95,0.00016438,2]
[333970970,1722653438083,-500.0,0.00016438,2]
[333970971,1722653438094,-561.65,0.00016438,2]
[333970972,1722653438104,-500.0,0.00016438,2]
[333970973,1722653438115,-762.75,0.00016438,2]
[333970974,1722653438124,-500.0,0.00016438,2]
[333970975,1722653438134,-590.88,0.00016438,2]
[333970976,1722653438144,-500.0,0.00016438,2]
[333970978,1722653438155,-530.03,0.00016438,2]
[333970979,1722653438164,-500.0,0.00016438,2]
[333970980,1722653438173,-625.42,0.00016438,2]
[333970981,1722653438183,-2012.66,0.00016438,2]
[333970982,1722653438194,-881.36,0.00016438,2]
[333970983,1722653438205,-500.0,0.00016438,2]
[333970984,1722653438215,-500.0,0.00016438,2]
[333970985,1722653438224,-817.9,0.00016438,2]
[333970986,1722653438235,-9770.41,0.00016438,2]
[333970987,1722653438246,-500.0,0.00016438,2]
[333970988,1722653438255,-4785.87,0.00016438,2]
[333970989,1722653438265,-500.0,0.00016438,2]
[333970990,1722653438274,-824.81,0.00016438,2]
[333970991,1722653438284,-3024.89,0.00016438,2]
[333970992,1722653438293,-1002.26,0.00016438,2]
[333970993,1722653438303,-500.0,0.00016438,2]
[333970994,1722653438312,-798.31,0.00016438,2]
[333970995,1722653438321,-21918.28,0.00016438,2]
[333970996,1722653438331,-500.0,0.00016438,2]
[333970997,1722653438341,-742.11,0.00016438,2]
[333970998,1722653438351,-500.0,0.00016438,2]
[333970999,1722653438360,-2750.16,0.00016438,2]
[333971000,1722653438369,-500.0,0.00016438,2]
[333971001,1722653438387,-1337.62,0.00016438,2]
[333971003,1722653438396,-500.0,0.00016438,2]
[333971006,1722653438407,-602.34,0.00016438,2]
[333971008,1722653438417,-953.46,0.00016438,2]
[333971009,1722653438427,-4848.99,0.00016438,2]
[333971010,1722653438437,-500.0,0.00016438,2]
[333971011,1722653438446,-1061.73,0.00016438,2]
[333971012,1722653438455,-10310.33,0.00016438,2]
[333971013,1722653438466,-1465.64,0.00016438,2]
[333971014,1722653438475,-500.0,0.00016438,2]
[333971015,1722653438484,-1307.74,0.00016438,2]
[333971016,1722653438493,-2463.86,0.00016438,2]
[333971017,1722653438505,-500.0,0.00016438,2]
[333971018,1722653438515,-500.0,0.00016438,2]
[333971019,1722653438524,-500.0,0.00016438,2]
[333971020,1722653438533,-4164.9,0.00016438,2]
[333971021,1722653438543,-955.41,0.00016438,2]
[333971022,1722653438552,-500.0,0.00016438,2]
[333971023,1722653438562,-852.27,0.00016438,2]
[333971024,1722653438571,-1541.11,0.00016438,2]
[333971025,1722653438583,-772.57,0.00016438,2]
[333971026,1722653438592,-500.0,0.00016438,2]
[333971027,1722653438601,-642.63,0.00016438,2]
[333971028,1722653438611,-574.72,0.00016438,2]
[333971029,1722653438620,-716.93,0.00016438,2]
[333971030,1722653438629,-500.0,0.00016438,2]
[333971031,1722653438638,-6157.6,0.00016438,2]
[333971032,1722653438647,-1013.9,0.00016438,2]
[333971033,1722653438657,-796.59,0.00016438,2]
[333971034,1722653438666,-500.0,0.00016438,2]
[333971035,1722653438675,-500.0,0.00016438,2]
[333971036,1722653438684,-2215.0,0.00016438,2]
[333971037,1722653438694,-3314.99,0.00016438,2]
[333971038,1722653438703,-8046.29,0.00016438,2]
[333971039,1722653438712,-3238.02,0.00016438,2]
[333971040,1722653438721,-500.0,0.00016438,2]
[333971041,1722653438731,-791.79,0.00016438,2]
[333971042,1722653438740,-912.55,0.00016438,2]
[333971043,1722653438749,-607.73,0.00016438,2]
[333971044,1722653438758,-500.0,0.00016438,2]
[333971045,1722653438767,-500.0,0.00016438,2]
[333971046,1722653438777,-1358.3,0.00016438,2]
[333971047,1722653438786,-1527.57,0.00016438,2]
[333971048,1722653438795,-929.98,0.00016438,2]
[333971049,1722653438804,-600.36,0.00016438,2]
[333971050,1722653438813,-2742.77,0.00016438,2]
[333971051,1722653438823,-999.63762574,0.00016438,2]
[333971054,1722653438858,-8467.73237426,0.00016438,2]
[333971070,1722653439174,-3302.88,0.00016438,2]
[333971073,1722653439198,-500.0,0.00016438,2]
[333971075,1722653439207,-500.0,0.00016438,2]
[333971077,1722653439216,-500.0,0.00016438,2]
[333971078,1722653439226,-982.88,0.00016438,2]
[333971080,1722653439236,-2017.87,0.00016438,2]
[333971082,1722653439245,-618.32,0.00016438,2]
[333971084,1722653439254,-500.0,0.00016438,2]
[333971086,1722653439263,-805.21,0.00016438,2]
[333971087,1722653439273,-500.0,0.00016438,2]
[333971089,1722653439282,-500.0,0.00016438,2]
[333971091,1722653439291,-500.0,0.00016438,2]
[333971093,1722653439301,-2771.98,0.00016438,2]
[333971095,1722653439311,-500.0,0.00016438,2]
[333971097,1722653439320,-1630.71,0.00016438,2]
[333971099,1722653439329,-500.0,0.00016438,2]
[333971100,1722653439339,-808.62,0.00016438,2]
[333971102,1722653439348,-500.0,0.00016438,2]
[333971104,1722653439358,-500.0,0.00016438,2]
[333971106,1722653439367,-3079.39,0.00016438,2]
[333971108,1722653439376,-1043.44,0.00016438,2]
[333971110,1722653439385,-3244.17,0.00016438,2]
[333971111,1722653439395,-500.0,0.00016438,2]
[333971113,1722653439405,-500.0,0.00016438,2]
[333971115,1722653439415,-500.0,0.00016438,2]
[333971117,1722653439424,-1626.32,0.00016438,2]
[333971119,1722653439435,-500.0,0.00016438,2]
[333971121,1722653439444,-500.0,0.00016438,2]
[333971123,1722653439453,-500.0,0.00016438,2]
[333971124,1722653439462,-2916.72,0.00016438,2]
[333971125,1722653439472,-732.6,0.00016438,2]
[333971126,1722653439481,-500.0,0.00016438,2]
[333971127,1722653439490,-533.22,0.00016438,2]
[333971128,1722653439501,-1503.23,0.00016438,2]
[333971129,1722653439511,-500.0,0.00016438,2]
[333971130,1722653439520,-4814.48,0.00016438,2]
[333971131,1722653439529,-2818.92,0.00016438,2]
[333971132,1722653439539,-913.97,0.00016438,2]
[333971133,1722653439548,-500.0,0.00016438,2]
[333971134,1722653439558,-773.61,0.00016438,2]
[333971136,1722653439567,-500.0,0.00016438,2]
[333971137,1722653439579,-500.0,0.00016438,2]
[333971139,1722653439590,-2030.61,0.00016438,2]
[333971141,1722653439599,-580.34,0.00016438,2]
[333971143,1722653439608,-789.48,0.00016438,2]
[333971145,1722653439618,-559.38,0.00016438,2]
[333971147,1722653439627,-643.23,0.00016438,2]
[333971149,1722653439636,-500.0,0.00016438,2]
[333971150,1722653439645,-500.0,0.00016438,2]
[333971151,1722653439654,-500.0,0.00016438,2]
[333971152,1722653439663,-500.0,0.00016438,2]
[333971153,1722653439672,-621.04,0.00016438,2]
[333971155,1722653439681,-441.64762574,0.00016438,2]
[333971160,1722653439723,-331.77046569,0.00016438,2]
[333971163,1722653439735,-3865.89190857,0.00016438,2]
[333971165,1722653439745,-910.40575218,0.00016438,2]
[333971167,1722653439757,-1075.43,0.00016438,2]
[333971171,1722653439792,-1173.02424782,0.00016438,2]
[333971173,1722653439802,-1233.44,0.00016438,2]
[333971175,1722653439812,-500.0,0.00016438,2]
[333971177,1722653439823,-500.0,0.00016438,2]
[333971179,1722653439833,-644.47,0.00016438,2]
[333971181,1722653439843,-500.0,0.00016438,2]
[333971183,1722653439853,-1090.83,0.00016438,2]
[333971185,1722653439863,-628.16,0.00016438,2]
[333971187,1722653439874,-500.0,0.00016438,2]
[333971190,1722653439885,-500.0,0.00016438,2]
[333971192,1722653439896,-681.94,0.00016438,2]
[333971194,1722653439907,-1155.63,0.00016438,2]
[333971196,1722653439918,-2352.78,0.00016438,2]
[333971198,1722653439927,-665.08,0.00016438,2]
[333971200,1722653439937,-1989.76,0.00016438,2]
[333971202,1722653439947,-290.58635325,0.00016438,2]
[333971204,1722653439957,-500.0,0.00016438,2]
[333971206,1722653439967,-1099.89,0.00016438,2]
[333971208,1722653439978,-1594.0,0.00016438,2]
[333971210,1722653439989,-1469.07,0.00016438,2]
[333971212,1722653439999,-500.0,0.00016438,2]
[333971214,1722653440012,-500.0,0.00016438,2]
[333971216,1722653440023,-500.0,0.00016438,2]
[333971218,1722653440033,-500.0,0.00016438,2]
[333971220,1722653440044,-576.65,0.00016438,2]
[333971222,1722653440054,-1222.01,0.00016438,2]
[333971224,1722653440065,-500.0,0.00016438,2]
[333971226,1722653440076,-1043.47,0.00016438,2]
[333971228,1722653440087,-500.0,0.00016438,2]
[333971230,1722653440101,-824.97,0.00016438,2]
[333971232,1722653440111,-500.0,0.00016438,2]
[333971234,1722653440121,-1259.25,0.00016438,2]
[333971236,1722653440132,-500.0,0.00016438,2]
[333971239,1722653440142,-746.46,0.00016438,2]
[333971241,1722653440153,-5164.92,0.00016438,2]
[333971243,1722653440164,-200.0,0.00016438,2]
[333971245,1722653440175,-500.0,0.00016438,2]
[333971247,1722653440187,-500.0,0.00016438,2]
[333971249,1722653440198,-11581.87,0.00016438,2]
[333971251,1722653440210,-678.54,0.00016438,2]